[Event "Titled Tuesday Blitz November 08 Late 2022"]
[White "Rosenberg, Evan S"]
[Black "Lopez Perdomo, Juan David"]
[WhiteFideId "2019299"]
[BlackFideId "4405137"]
[WhiteElo "2381"]
[BlackElo "1965"]
[Result "0-1"]
[Round "06"]
[TimeControl "180+1"]
[Date "2022.11.09"]
[WhiteClock "0:01:29"]
[BlackClock "0:01:57"]

1. d4 {[%clk 0:02:59]}  c5 {[%clk 0:02:52]} 2. d5 {[%clk 0:02:51]}  e6 {[%clk 0:02:52]} 3. e4 {[%clk 0:02:49]}  exd5 {[%clk 0:02:53]} 4. exd5 {[%clk 0:02:49]}  d6 {[%clk 0:02:54]} 5. Be2 {[%clk 0:02:45]}  Nf6 {[%clk 0:02:55]} 6. Nf3 {[%clk 0:02:44]}  g6 {[%clk 0:02:56]} 7. Nc3 {[%clk 0:02:43]}  Bg7 {[%clk 0:02:57]} 8. O-O {[%clk 0:02:41]}  O-O {[%clk 0:02:58]} 9. Nd2 {[%clk 0:02:41]}  Nbd7 {[%clk 0:02:57]} 10. Nc4 {[%clk 0:02:41]}  Nb6 {[%clk 0:02:58]} 11. a4 {[%clk 0:02:31]}  Nxc4 {[%clk 0:02:55]} 12. Bxc4 {[%clk 0:02:32]}  Re8 {[%clk 0:02:53]} 13. h3 {[%clk 0:02:29]}  Bd7 {[%clk 0:02:47]} 14. Bf4 {[%clk 0:02:28]}  Ne4 {[%clk 0:02:40]} 15. Nb5 {[%clk 0:02:14]}  Bxb2 {[%clk 0:02:23]} 16. Nxd6 {[%clk 0:01:56]}  Nxd6 {[%clk 0:02:11]} 17. Bxd6 {[%clk 0:01:53]}  Bxa1 {[%clk 0:02:05]} 18. Qxa1 {[%clk 0:01:50]}  Bxh3 {[%clk 0:02:04]} 19. Bg3 {[%clk 0:01:29]}  Bf5 {[%clk 0:01:57]} 0-1


[Site "https://www.chess.com"]

[Event "Titled Tuesday Blitz November 08 Late 2022"]
[White "Roux, Baptiste"]
[Black "Goryachkina, Aleksandra"]
[WhiteFideId "36017450"]
[BlackFideId "4147103"]
[WhiteElo "2077"]
[BlackElo "2484"]
[Result "0-1"]
[Round "06"]
[TimeControl "180+1"]
[Date "2022.11.09"]
[WhiteClock "0:00:05"]
[BlackClock "0:00:06"]

1. e4 {[%clk 0:03:00]}  c5 {[%clk 0:03:00]} 2. Nf3 {[%clk 0:02:59]}  e6 {[%clk 0:03:00]} 3. d3 {[%clk 0:02:55]}  d5 {[%clk 0:02:54]} 4. Nbd2 {[%clk 0:02:55]}  Nc6 {[%clk 0:02:51]} 5. g3 {[%clk 0:02:48]}  Nf6 {[%clk 0:02:51]} 6. Bg2 {[%clk 0:02:49]}  g6 {[%clk 0:02:51]} 7. O-O {[%clk 0:02:47]}  Bg7 {[%clk 0:02:51]} 8. Re1 {[%clk 0:02:45]}  O-O {[%clk 0:02:48]} 9. c3 {[%clk 0:02:34]}  b6 {[%clk 0:02:40]} 10. Qe2 {[%clk 0:02:30]}  Ba6 {[%clk 0:02:35]} 11. c4 {[%clk 0:02:10]}  dxc4 {[%clk 0:02:23]} 12. dxc4 {[%clk 0:02:03]}  Nd7 {[%clk 0:02:21]} 13. h4 {[%clk 0:01:52]}  Qc7 {[%clk 0:02:14]} 14. h5 {[%clk 0:01:48]}  Rad8 {[%clk 0:02:12]} 15. Nf1 {[%clk 0:01:37]}  Nde5 {[%clk 0:02:07]} 16. Nxe5 {[%clk 0:01:30]}  Nxe5 {[%clk 0:02:04]} 17. Ne3 {[%clk 0:01:24]}  Rd4 {[%clk 0:01:52]} 18. b3 {[%clk 0:00:54]}  Nd3 {[%clk 0:01:52]} 19. Rd1 {[%clk 0:00:49]}  Nxc1 {[%clk 0:01:41]} 20. Raxc1 {[%clk 0:00:48]}  Rfd8 {[%clk 0:01:41]} 21. hxg6 {[%clk 0:00:42]}  hxg6 {[%clk 0:01:41]} 22. Rxd4 {[%clk 0:00:34]}  cxd4 {[%clk 0:01:39]} 23. Nf1 {[%clk 0:00:27]}  d3 {[%clk 0:01:29]} 24. Qe3 {[%clk 0:00:20]}  Bd4 {[%clk 0:01:24]} 25. Qd2 {[%clk 0:00:18]}  Qc5 {[%clk 0:01:19]} 26. Rd1 {[%clk 0:00:17]}  b5 {[%clk 0:01:15]} 27. cxb5 {[%clk 0:00:15]}  Bxb5 {[%clk 0:01:15]} 28. Ne3 {[%clk 0:00:15]}  a5 {[%clk 0:01:08]} 29. Rc1 {[%clk 0:00:14]}  Qb6 {[%clk 0:01:07]} 30. Nc4 {[%clk 0:00:11]}  Qa7 {[%clk 0:00:47]} 31. Kf1 {[%clk 0:00:11]}  Bxc4 {[%clk 0:00:33]} 32. Rxc4 {[%clk 0:00:10]}  Bc5 {[%clk 0:00:32]} 33. Bf3 {[%clk 0:00:06]}  Bb4 {[%clk 0:00:31]} 34. Qd1 {[%clk 0:00:06]}  d2 {[%clk 0:00:30]} 35. Kg2 {[%clk 0:00:06]}  Qd7 {[%clk 0:00:26]} 36. e5 {[%clk 0:00:06]}  Kg7 {[%clk 0:00:25]} 37. Rh4 {[%clk 0:00:05]}  Rh8 {[%clk 0:00:21]} 38. Qh1 {[%clk 0:00:05]}  Rxh4 {[%clk 0:00:20]} 39. gxh4 {[%clk 0:00:06]}  Qd4 {[%clk 0:00:17]} 40. Qd1 {[%clk 0:00:03]}  Qxe5 {[%clk 0:00:16]} 41. h5 {[%clk 0:00:04]}  g5 {[%clk 0:00:15]} 42. Bg4 {[%clk 0:00:03]}  f5 {[%clk 0:00:14]} 43. Bf3 {[%clk 0:00:04]}  g4 {[%clk 0:00:14]} 44. Be2 {[%clk 0:00:04]}  Qf4 {[%clk 0:00:13]} 45. Qc2 {[%clk 0:00:03]}  Qd6 {[%clk 0:00:09]} 46. Bxg4 {[%clk 0:00:03]}  fxg4 {[%clk 0:00:06]} 47. Qg6+ {[%clk 0:00:03]}  Kf8 {[%clk 0:00:07]} 48. Qf6+ {[%clk 0:00:02]}  Ke8 {[%clk 0:00:07]} 49. Qh8+ {[%clk 0:00:02]}  Kd7 {[%clk 0:00:07]} 50. Qg7+ {[%clk 0:00:03]}  Kc6 {[%clk 0:00:06]} 51. h6 {[%clk 0:00:04]}  d1=Q {[%clk 0:00:06]} 52. Qxg4 {[%clk 0:00:05]}  Qxg4+ {[%clk 0:00:06]} 0-1


[Site "https://www.chess.com"]

[Event "Titled Tuesday Blitz November 08 Late 2022"]
[White "Souleidis, Georgios"]
[Black "Bernat, David"]
[WhiteFideId "4206827"]
[BlackFideId "2099225"]
[WhiteElo "2401"]
[BlackElo "2337"]
[Result "1-0"]
[Round "06"]
[TimeControl "180+1"]
[Date "2022.11.09"]
[WhiteClock "0:00:25"]
[BlackClock "0:00:02"]

1. e4 {[%clk 0:02:50]}  c5 {[%clk 0:02:59]} 2. Be2 {[%clk 0:02:50]}  g6 {[%clk 0:02:59]} 3. d3 {[%clk 0:02:50]}  Bg7 {[%clk 0:02:59]} 4. f4 {[%clk 0:02:51]}  Nc6 {[%clk 0:03:00]} 5. Nf3 {[%clk 0:02:51]}  e6 {[%clk 0:03:00]} 6. O-O {[%clk 0:02:52]}  Nge7 {[%clk 0:03:00]} 7. c3 {[%clk 0:02:51]}  O-O {[%clk 0:03:01]} 8. Be3 {[%clk 0:02:52]}  b6 {[%clk 0:02:59]} 9. d4 {[%clk 0:02:52]}  cxd4 {[%clk 0:02:59]} 10. cxd4 {[%clk 0:02:53]}  d5 {[%clk 0:02:59]} 11. e5 {[%clk 0:02:53]}  Nf5 {[%clk 0:02:58]} 12. Bf2 {[%clk 0:02:53]}  h5 {[%clk 0:02:59]} 13. Nc3 {[%clk 0:02:53]}  f6 {[%clk 0:02:57]} 14. Qd2 {[%clk 0:02:51]}  fxe5 {[%clk 0:02:57]} 15. dxe5 {[%clk 0:02:52]}  Bb7 {[%clk 0:02:53]} 16. Nb5 {[%clk 0:02:46]}  a6 {[%clk 0:02:44]} 17. Nbd4 {[%clk 0:02:43]}  Bh6 {[%clk 0:02:38]} 18. Nxe6 {[%clk 0:02:39]}  Qd7 {[%clk 0:02:34]} 19. Nxf8 {[%clk 0:02:38]}  Rxf8 {[%clk 0:02:33]} 20. Rad1 {[%clk 0:02:37]}  d4 {[%clk 0:02:33]} 21. Bd3 {[%clk 0:01:22]}  Nfe7 {[%clk 0:02:19]} 22. g3 {[%clk 0:00:54]}  Nd5 {[%clk 0:02:01]} 23. Qe2 {[%clk 0:00:52]}  Ndb4 {[%clk 0:01:49]} 24. Bxg6 {[%clk 0:00:47]}  Qg7 {[%clk 0:01:30]} 25. Be4 {[%clk 0:00:43]}  Bxf4 {[%clk 0:01:22]} 26. a3 {[%clk 0:00:43]}  d3 {[%clk 0:01:05]} 27. Qe1 {[%clk 0:00:36]}  Nc2 {[%clk 0:00:51]} 28. Qc3 {[%clk 0:00:37]}  Ne3 {[%clk 0:00:42]} 29. Bxe3 {[%clk 0:00:37]}  Bxe3+ {[%clk 0:00:43]} 30. Kg2 {[%clk 0:00:38]}  Rc8 {[%clk 0:00:19]} 31. Qxd3 {[%clk 0:00:37]}  Bc5 {[%clk 0:00:17]} 32. b4 {[%clk 0:00:37]}  Be7 {[%clk 0:00:15]} 33. Qd7 {[%clk 0:00:34]}  Bf8 {[%clk 0:00:09]} 34. Qxg7+ {[%clk 0:00:32]}  Bxg7 {[%clk 0:00:09]} 35. Rd7 {[%clk 0:00:32]}  Ba8 {[%clk 0:00:08]} 36. e6 {[%clk 0:00:29]}  Ne5 {[%clk 0:00:05]} 37. Bxa8 {[%clk 0:00:29]}  Nxd7 {[%clk 0:00:02]} 38. Bb7 {[%clk 0:00:25]} 1-0


[Site "https://www.chess.com"]

[Event "Titled Tuesday Blitz November 08 Late 2022"]
[White "Steen, Bobby"]
[Black "Martinez, Shawn"]
[WhiteFideId "2053870"]
[BlackFideId "2039770"]
[WhiteElo "2146"]
[BlackElo "2174"]
[Result "0-1"]
[Round "06"]
[TimeControl "180+1"]
[Date "2022.11.09"]
[WhiteClock "0:01:17"]
[BlackClock "0:00:05"]

1. e4 {[%clk 0:03:00]}  c5 {[%clk 0:02:51]} 2. Nf3 {[%clk 0:03:00]}  e6 {[%clk 0:02:46]} 3. c3 {[%clk 0:02:58]}  d5 {[%clk 0:02:42]} 4. exd5 {[%clk 0:02:58]}  Qxd5 {[%clk 0:02:42]} 5. Bb5+ {[%clk 0:02:55]}  Nc6 {[%clk 0:02:33]} 6. Na3 {[%clk 0:02:55]}  Nf6 {[%clk 0:02:05]} 7. O-O {[%clk 0:02:53]}  Be7 {[%clk 0:01:45]} 8. Bc4 {[%clk 0:02:53]}  Qd8 {[%clk 0:01:44]} 9. Nc2 {[%clk 0:02:54]}  O-O {[%clk 0:01:43]} 10. d4 {[%clk 0:02:54]}  cxd4 {[%clk 0:01:43]} 11. Ncxd4 {[%clk 0:02:55]}  Nxd4 {[%clk 0:01:42]} 12. Nxd4 {[%clk 0:02:56]}  e5 {[%clk 0:01:41]} 13. Nb5 {[%clk 0:02:55]}  Bg4 {[%clk 0:01:37]} 14. Qxd8 {[%clk 0:02:37]}  Rfxd8 {[%clk 0:01:35]} 15. Be3 {[%clk 0:02:37]}  a6 {[%clk 0:01:25]} 16. Na3 {[%clk 0:02:36]}  b5 {[%clk 0:01:22]} 17. Bb3 {[%clk 0:02:36]}  Nd5 {[%clk 0:01:10]} 18. Bxd5 {[%clk 0:02:25]}  Rxd5 {[%clk 0:01:06]} 19. Nc2 {[%clk 0:02:26]}  Rad8 {[%clk 0:01:01]} 20. Nb4 {[%clk 0:02:26]}  Bxb4 {[%clk 0:00:51]} 21. cxb4 {[%clk 0:02:26]}  f5 {[%clk 0:00:45]} 22. f3 {[%clk 0:02:26]}  Bh5 {[%clk 0:00:44]} 23. Rac1 {[%clk 0:02:25]}  f4 {[%clk 0:00:43]} 24. Bb6 {[%clk 0:02:25]}  R8d6 {[%clk 0:00:42]} 25. Rc8+ {[%clk 0:02:21]}  Kf7 {[%clk 0:00:41]} 26. Bc5 {[%clk 0:02:20]}  Rd7 {[%clk 0:00:36]} 27. Rc6 {[%clk 0:02:20]}  Rd2 {[%clk 0:00:34]} 28. Rxa6 {[%clk 0:02:10]}  Rxb2 {[%clk 0:00:30]} 29. Rd6 {[%clk 0:01:56]}  Rxd6 {[%clk 0:00:19]} 30. Bxd6 {[%clk 0:01:56]}  Ke6 {[%clk 0:00:19]} 31. Bc7 {[%clk 0:01:49]}  e4 {[%clk 0:00:13]} 32. fxe4 {[%clk 0:01:49]}  g5 {[%clk 0:00:12]} 33. h4 {[%clk 0:01:39]}  h6 {[%clk 0:00:11]} 34. hxg5 {[%clk 0:01:39]}  hxg5 {[%clk 0:00:11]} 35. Bd8 {[%clk 0:01:40]}  Be2 {[%clk 0:00:11]} 36. Rc1 {[%clk 0:01:31]}  g4 {[%clk 0:00:06]} 37. Rc6+ {[%clk 0:01:27]}  Kd7 {[%clk 0:00:06]} 38. Rf6 {[%clk 0:01:17]}  g3 {[%clk 0:00:05]} 0-1


[Site "https://www.chess.com"]

[Event "Titled Tuesday Blitz November 08 Late 2022"]
[White "Thomforde-Toates, Noah"]
[Black "Ansh M Shah"]
[WhiteFideId "30951992"]
[BlackFideId "25033379"]
[WhiteElo "2608"]
[BlackElo "2084"]
[Result "1-0"]
[Round "06"]
[TimeControl "180+1"]
[Date "2022.11.09"]
[WhiteClock "0:01:18"]
[BlackClock "0:00:04"]

1. d4 {[%clk 0:03:00]}  Nf6 {[%clk 0:02:56]} 2. Nc3 {[%clk 0:02:57]}  e6 {[%clk 0:02:57]} 3. Bf4 {[%clk 0:02:56]}  d5 {[%clk 0:02:58]} 4. e3 {[%clk 0:02:55]}  Be7 {[%clk 0:02:57]} 5. Nf3 {[%clk 0:02:55]}  O-O {[%clk 0:02:58]} 6. Bd3 {[%clk 0:02:55]}  c6 {[%clk 0:02:58]} 7. O-O {[%clk 0:02:55]}  Nbd7 {[%clk 0:02:58]} 8. Ne5 {[%clk 0:02:55]}  Nxe5 {[%clk 0:02:56]} 9. Bxe5 {[%clk 0:02:56]}  Bd6 {[%clk 0:02:56]} 10. f4 {[%clk 0:02:54]}  Be7 {[%clk 0:02:54]} 11. Qf3 {[%clk 0:02:51]}  g6 {[%clk 0:02:50]} 12. g4 {[%clk 0:02:47]}  Ne4 {[%clk 0:02:25]} 13. g5 {[%clk 0:01:52]}  Nd2 {[%clk 0:01:17]} 14. Qh3 {[%clk 0:01:51]}  Nxf1 {[%clk 0:01:17]} 15. Qh6 {[%clk 0:01:49]}  f6 {[%clk 0:01:18]} 16. Bxg6 {[%clk 0:01:32]}  hxg6 {[%clk 0:01:01]} 17. Qxg6+ {[%clk 0:01:33]}  Kh8 {[%clk 0:01:02]} 18. Qh6+ {[%clk 0:01:32]}  Kg8 {[%clk 0:01:00]} 19. g6 {[%clk 0:01:32]}  Rf7 {[%clk 0:00:51]} 20. gxf7+ {[%clk 0:01:31]}  Kxf7 {[%clk 0:00:52]} 21. Qh5+ {[%clk 0:01:32]}  Kf8 {[%clk 0:00:50]} 22. Rxf1 {[%clk 0:01:30]}  Bd7 {[%clk 0:00:44]} 23. Rf2 {[%clk 0:01:26]}  Qe8 {[%clk 0:00:12]} 24. Qh8+ {[%clk 0:01:19]}  Kf7 {[%clk 0:00:12]} 25. Qh7+ {[%clk 0:01:19]}  Kf8 {[%clk 0:00:12]} 26. Rg2 {[%clk 0:01:19]}  Qf7 {[%clk 0:00:04]} 27. Qh8+ {[%clk 0:01:18]} 1-0


[Site "https://www.chess.com"]

[Event "Titled Tuesday Blitz November 08 Late 2022"]
[White "Vargas, Mauricio"]
[Black "Rose, Felix"]
[WhiteFideId "4404572"]
[BlackFideId "5105722"]
[WhiteElo "2025"]
[BlackElo "2039"]
[Result "1-0"]
[Round "06"]
[TimeControl "180+1"]
[Date "2022.11.09"]
[WhiteClock "0:01:32"]
[BlackClock "0:00:14"]

1. e4 {[%clk 0:03:00]}  c5 {[%clk 0:02:59]} 2. Nf3 {[%clk 0:03:00]}  d6 {[%clk 0:02:59]} 3. d4 {[%clk 0:03:00]}  cxd4 {[%clk 0:03:00]} 4. Nxd4 {[%clk 0:03:01]}  Nf6 {[%clk 0:03:01]} 5. Nc3 {[%clk 0:03:01]}  a6 {[%clk 0:02:59]} 6. Be2 {[%clk 0:03:00]}  e5 {[%clk 0:02:59]} 7. Nb3 {[%clk 0:02:57]}  Be7 {[%clk 0:02:58]} 8. O-O {[%clk 0:02:56]}  Be6 {[%clk 0:02:57]} 9. Kh1 {[%clk 0:02:55]}  Nbd7 {[%clk 0:02:56]} 10. f4 {[%clk 0:02:54]}  exf4 {[%clk 0:02:57]} 11. Bxf4 {[%clk 0:02:53]}  Ne5 {[%clk 0:02:55]} 12. Nd4 {[%clk 0:02:52]}  O-O {[%clk 0:02:52]} 13. Bg5 {[%clk 0:02:46]}  Nfd7 {[%clk 0:02:48]} 14. Bxe7 {[%clk 0:02:43]}  Qxe7 {[%clk 0:02:48]} 15. Nf5 {[%clk 0:02:44]}  Bxf5 {[%clk 0:02:44]} 16. Rxf5 {[%clk 0:02:45]}  Nf6 {[%clk 0:02:41]} 17. Qd4 {[%clk 0:02:36]}  Rac8 {[%clk 0:02:35]} 18. Raf1 {[%clk 0:02:33]}  Nc6 {[%clk 0:01:39]} 19. Qe3 {[%clk 0:02:19]}  Nd7 {[%clk 0:01:17]} 20. Nd5 {[%clk 0:02:15]}  Qe6 {[%clk 0:01:10]} 21. Qg3 {[%clk 0:02:08]}  g6 {[%clk 0:00:51]} 22. R5f4 {[%clk 0:02:00]}  Nce5 {[%clk 0:00:29]} 23. c3 {[%clk 0:01:54]}  b5 {[%clk 0:00:27]} 24. Qh4 {[%clk 0:01:48]}  f5 {[%clk 0:00:21]} 25. Ne7+ {[%clk 0:01:43]}  Kg7 {[%clk 0:00:21]} 26. Nxc8 {[%clk 0:01:43]}  Rxc8 {[%clk 0:00:19]} 27. exf5 {[%clk 0:01:42]}  gxf5 {[%clk 0:00:14]} 28. Rxf5 {[%clk 0:01:38]}  Ng6 {[%clk 0:00:14]} 29. Rf7+ {[%clk 0:01:33]}  Qxf7 {[%clk 0:00:14]} 30. Rxf7+ {[%clk 0:01:33]}  Kxf7 {[%clk 0:00:15]} 31. Qxh7+ {[%clk 0:01:32]}  Kf6 {[%clk 0:00:14]} 32. Qxd7 {[%clk 0:01:32]} 1-0


[Site "https://www.chess.com"]

[Event "Titled Tuesday Blitz November 08 Late 2022"]
[White "Yano, William Jorge Froes"]
[Black "Lopez Martinez, Josep Manuel"]
[WhiteFideId "2112949"]
[BlackFideId "2212943"]
[WhiteElo "2122"]
[BlackElo "2471"]
[Result "1-0"]
[Round "06"]
[TimeControl "180+1"]
[Date "2022.11.09"]
[WhiteClock "0:00:03"]
[BlackClock "0:00:01"]

1. e4 {[%clk 0:03:00]}  c5 {[%clk 0:02:59]} 2. Nf3 {[%clk 0:03:00]}  d6 {[%clk 0:02:58]} 3. Bb5+ {[%clk 0:03:00]}  Nd7 {[%clk 0:02:57]} 4. Ba4 {[%clk 0:03:00]}  a6 {[%clk 0:02:56]} 5. c4 {[%clk 0:03:00]}  b5 {[%clk 0:02:44]} 6. cxb5 {[%clk 0:02:55]}  Nb6 {[%clk 0:02:44]} 7. bxa6+ {[%clk 0:02:51]}  Nxa4 {[%clk 0:02:44]} 8. Qxa4+ {[%clk 0:02:51]}  Bd7 {[%clk 0:02:44]} 9. Qc4 {[%clk 0:02:45]}  Qa5 {[%clk 0:02:39]} 10. Nc3 {[%clk 0:02:42]}  Qxa6 {[%clk 0:02:39]} 11. Qxa6 {[%clk 0:02:39]}  Rxa6 {[%clk 0:02:39]} 12. O-O {[%clk 0:02:40]}  e6 {[%clk 0:02:33]} 13. d4 {[%clk 0:02:40]}  cxd4 {[%clk 0:02:31]} 14. Nxd4 {[%clk 0:02:40]}  Nf6 {[%clk 0:02:29]} 15. Be3 {[%clk 0:02:35]}  Be7 {[%clk 0:02:28]} 16. Rfb1 {[%clk 0:02:31]}  O-O {[%clk 0:02:27]} 17. Nde2 {[%clk 0:02:18]}  Rc8 {[%clk 0:02:25]} 18. f3 {[%clk 0:02:14]}  Raa8 {[%clk 0:02:02]} 19. a4 {[%clk 0:02:11]}  d5 {[%clk 0:01:48]} 20. b4 {[%clk 0:01:59]}  dxe4 {[%clk 0:01:47]} 21. fxe4 {[%clk 0:01:33]}  Rc4 {[%clk 0:01:42]} 22. b5 {[%clk 0:01:27]}  Nxe4 {[%clk 0:01:41]} 23. Nxe4 {[%clk 0:01:27]}  Rxe4 {[%clk 0:01:41]} 24. Kf2 {[%clk 0:01:21]}  f5 {[%clk 0:01:03]} 25. a5 {[%clk 0:01:11]}  e5 {[%clk 0:00:50]} 26. Nc3 {[%clk 0:00:59]}  Rxe3 {[%clk 0:00:44]} 27. Kxe3 {[%clk 0:00:56]}  Bc5+ {[%clk 0:00:44]} 28. Ke2 {[%clk 0:00:54]}  Bd4 {[%clk 0:00:43]} 29. Ra3 {[%clk 0:00:51]}  f4 {[%clk 0:00:23]} 30. Ne4 {[%clk 0:00:34]}  Bg4+ {[%clk 0:00:13]} 31. Kd3 {[%clk 0:00:31]}  Rd8 {[%clk 0:00:13]} 32. Ra4 {[%clk 0:00:06]}  Bf5 {[%clk 0:00:11]} 33. Re1 {[%clk 0:00:02]}  Bf2+ {[%clk 0:00:09]} 34. Ke2 {[%clk 0:00:03]}  Bxe1 {[%clk 0:00:09]} 35. Kxe1 {[%clk 0:00:04]}  Bg4 {[%clk 0:00:08]} 36. h3 {[%clk 0:00:03]}  Bf5 {[%clk 0:00:07]} 37. b6 {[%clk 0:00:03]}  Rb8 {[%clk 0:00:04]} 38. Nc5 {[%clk 0:00:03]}  e4 {[%clk 0:00:02]} 39. a6 {[%clk 0:00:03]}  e3 {[%clk 0:00:02]} 40. a7 {[%clk 0:00:03]}  Rd8 {[%clk 0:00:01]} 41. a8=Q {[%clk 0:00:02]}  Rxa8 {[%clk 0:00:01]} 42. Rxa8+ {[%clk 0:00:02]}  Kf7 {[%clk 0:00:01]} 43. b7 {[%clk 0:00:03]}  f3 {[%clk 0:00:01]} 44. b8=Q {[%clk 0:00:02]}  f2+ {[%clk 0:00:01]} 45. Ke2 {[%clk 0:00:03]} 1-0


[Site "https://www.chess.com"]

[Event "Titled Tuesday Blitz November 08 Late 2022"]
[White "Zakhartsov, Vladimir"]
[Black "Sarana, Alexey"]
[WhiteFideId "4145097"]
[BlackFideId "24133795"]
[WhiteElo "2525"]
[BlackElo "2708"]
[Result "0-1"]
[Round "06"]
[TimeControl "180+1"]
[Date "2022.11.08"]
[WhiteClock "0:00:02"]
[BlackClock "0:00:08"]

1. e4 {[%clk 0:03:00]}  c5 {[%clk 0:02:59]} 2. Nf3 {[%clk 0:03:01]}  d6 {[%clk 0:03:00]} 3. d4 {[%clk 0:03:01]}  cxd4 {[%clk 0:03:01]} 4. Nxd4 {[%clk 0:03:02]}  Nf6 {[%clk 0:03:01]} 5. Nc3 {[%clk 0:03:03]}  a6 {[%clk 0:03:02]} 6. Bg5 {[%clk 0:03:02]}  e6 {[%clk 0:03:01]} 7. f4 {[%clk 0:03:02]}  Qb6 {[%clk 0:03:02]} 8. a3 {[%clk 0:02:51]}  Nc6 {[%clk 0:02:59]} 9. Nb3 {[%clk 0:02:12]}  Qe3+ {[%clk 0:02:59]} 10. Qe2 {[%clk 0:02:11]}  Ng4 {[%clk 0:02:59]} 11. Nd1 {[%clk 0:01:39]}  Qxe2+ {[%clk 0:02:59]} 12. Bxe2 {[%clk 0:01:40]}  Nf6 {[%clk 0:02:59]} 13. Nc3 {[%clk 0:01:40]}  Be7 {[%clk 0:02:54]} 14. O-O-O {[%clk 0:01:34]}  b5 {[%clk 0:02:54]} 15. Bf3 {[%clk 0:01:16]}  Bb7 {[%clk 0:02:54]} 16. Nd4 {[%clk 0:01:01]}  Rc8 {[%clk 0:02:25]} 17. Rhe1 {[%clk 0:00:59]}  Nxd4 {[%clk 0:02:06]} 18. Rxd4 {[%clk 0:00:59]}  h6 {[%clk 0:01:45]} 19. Bxf6 {[%clk 0:00:48]}  gxf6 {[%clk 0:01:45]} 20. e5 {[%clk 0:00:32]}  Bxf3 {[%clk 0:01:43]} 21. exd6 {[%clk 0:00:32]}  Bxd6 {[%clk 0:01:40]} 22. Rxd6 {[%clk 0:00:31]}  Bc6 {[%clk 0:01:29]} 23. Nd5 {[%clk 0:00:21]}  f5 {[%clk 0:01:07]} 24. Ne3 {[%clk 0:00:21]}  Kf8 {[%clk 0:00:46]} 25. g4 {[%clk 0:00:20]}  fxg4 {[%clk 0:00:42]} 26. Nxg4 {[%clk 0:00:20]}  Ke7 {[%clk 0:00:38]} 27. Rd3 {[%clk 0:00:17]}  Rhg8 {[%clk 0:00:28]} 28. Ne5 {[%clk 0:00:16]}  Rg2 {[%clk 0:00:28]} 29. Rd2 {[%clk 0:00:10]}  Rxd2 {[%clk 0:00:20]} 30. Kxd2 {[%clk 0:00:11]}  Bd5 {[%clk 0:00:21]} 31. c3 {[%clk 0:00:11]}  Rg8 {[%clk 0:00:21]} 32. Re2 {[%clk 0:00:11]}  Rg1 {[%clk 0:00:21]} 33. Re1 {[%clk 0:00:09]}  Rg8 {[%clk 0:00:19]} 34. Re2 {[%clk 0:00:08]}  f6 {[%clk 0:00:19]} 35. Nd3 {[%clk 0:00:08]}  Rg4 {[%clk 0:00:18]} 36. Rf2 {[%clk 0:00:08]}  Kd6 {[%clk 0:00:18]} 37. Nb4 {[%clk 0:00:08]}  Bb7 {[%clk 0:00:17]} 38. Nc2 {[%clk 0:00:09]}  Rh4 {[%clk 0:00:17]} 39. Ne3 {[%clk 0:00:09]}  Be4 {[%clk 0:00:15]} 40. c4 {[%clk 0:00:07]}  Rh3 {[%clk 0:00:14]} 41. b4 {[%clk 0:00:05]}  bxc4 {[%clk 0:00:13]} 42. Nxc4+ {[%clk 0:00:06]}  Kd5 {[%clk 0:00:14]} 43. Ne3+ {[%clk 0:00:05]}  Kd4 {[%clk 0:00:14]} 44. Ng4 {[%clk 0:00:06]}  Rxa3 {[%clk 0:00:13]} 45. Nxf6 {[%clk 0:00:05]}  Bd3 {[%clk 0:00:13]} 46. Ng4 {[%clk 0:00:03]}  h5 {[%clk 0:00:11]} 47. Ne5 {[%clk 0:00:03]}  Bb5 {[%clk 0:00:11]} 48. Nf3+ {[%clk 0:00:02]}  Kc4 {[%clk 0:00:11]} 49. Ne5+ {[%clk 0:00:02]}  Kxb4 {[%clk 0:00:11]} 50. Rf3 {[%clk 0:00:02]}  Ra2+ {[%clk 0:00:07]} 51. Kc1 {[%clk 0:00:01]}  Rxh2 {[%clk 0:00:07]} 52. f5 {[%clk 0:00:01]}  exf5 {[%clk 0:00:08]} 53. Rxf5 {[%clk 0:00:02]}  Kc3 {[%clk 0:00:07]} 54. Rf3+ {[%clk 0:00:02]}  Kd4 {[%clk 0:00:07]} 55. Ng6 {[%clk 0:00:02]}  Ke4 {[%clk 0:00:07]} 56. Rf4+ {[%clk 0:00:02]}  Ke3 {[%clk 0:00:07]} 57. Rb4 {[%clk 0:00:02]}  Bd3 {[%clk 0:00:08]} 0-1


[Site "https://www.chess.com"]

[Event "Titled Tuesday Blitz November 08 Late 2022"]
[White "Al-Tarboush, Ward"]
[Black "Svane, Frederik"]
[WhiteFideId "7601450"]
[BlackFideId "12923044"]
[WhiteElo "2273"]
[BlackElo "2466"]
[Result "0-1"]
[Round "07"]
[TimeControl "180+1"]
[Date "2022.11.08"]
[WhiteClock "0:00:02"]
[BlackClock "0:00:05"]

1. e4 {[%clk 0:03:00]}  c5 {[%clk 0:02:59]} 2. Nf3 {[%clk 0:03:00]}  e6 {[%clk 0:02:58]} 3. d4 {[%clk 0:03:01]}  cxd4 {[%clk 0:02:59]} 4. Nxd4 {[%clk 0:03:01]}  Nc6 {[%clk 0:03:00]} 5. Nc3 {[%clk 0:03:02]}  a6 {[%clk 0:03:00]} 6. Be3 {[%clk 0:03:03]}  Nf6 {[%clk 0:03:00]} 7. Nxc6 {[%clk 0:03:00]}  bxc6 {[%clk 0:03:01]} 8. e5 {[%clk 0:03:00]}  Nd5 {[%clk 0:03:01]} 9. Nxd5 {[%clk 0:03:01]}  cxd5 {[%clk 0:03:02]} 10. Bd3 {[%clk 0:03:00]}  d6 {[%clk 0:03:02]} 11. f4 {[%clk 0:02:59]}  dxe5 {[%clk 0:02:57]} 12. fxe5 {[%clk 0:03:00]}  Qh4+ {[%clk 0:02:57]} 13. g3 {[%clk 0:02:58]}  Qb4+ {[%clk 0:02:56]} 14. Qd2 {[%clk 0:02:56]}  Rb8 {[%clk 0:02:40]} 15. O-O {[%clk 0:02:36]}  Qxd2 {[%clk 0:02:39]} 16. Bxd2 {[%clk 0:02:37]}  Bc5+ {[%clk 0:02:37]} 17. Kg2 {[%clk 0:02:36]}  Rxb2 {[%clk 0:02:38]} 18. Rab1 {[%clk 0:02:35]}  Rxb1 {[%clk 0:02:38]} 19. Rxb1 {[%clk 0:02:36]}  Kd7 {[%clk 0:02:32]} 20. Rb8 {[%clk 0:02:32]}  Kc7 {[%clk 0:02:28]} 21. Rb3 {[%clk 0:02:32]}  Bd4 {[%clk 0:02:14]} 22. Ba5+ {[%clk 0:02:30]}  Kd7 {[%clk 0:02:09]} 23. Bc3 {[%clk 0:02:13]}  Bxc3 {[%clk 0:02:06]} 24. Rxc3 {[%clk 0:02:14]}  Bb7 {[%clk 0:02:06]} 25. Rb3 {[%clk 0:02:13]}  Kc7 {[%clk 0:02:06]} 26. Rc3+ {[%clk 0:02:12]}  Kb6 {[%clk 0:02:07]} 27. Rb3+ {[%clk 0:02:09]}  Ka7 {[%clk 0:02:07]} 28. Rb4 {[%clk 0:02:08]}  f6 {[%clk 0:01:48]} 29. exf6 {[%clk 0:01:41]}  gxf6 {[%clk 0:01:48]} 30. Rh4 {[%clk 0:01:41]}  h6 {[%clk 0:01:45]} 31. Kf2 {[%clk 0:01:39]}  Kb6 {[%clk 0:01:33]} 32. Rg4 {[%clk 0:01:35]}  Kc5 {[%clk 0:01:09]} 33. Rg6 {[%clk 0:01:33]}  Rf8 {[%clk 0:00:56]} 34. Rxh6 {[%clk 0:01:33]}  e5 {[%clk 0:00:57]} 35. Bf5 {[%clk 0:01:33]}  Kd4 {[%clk 0:00:50]} 36. h4 {[%clk 0:01:32]}  Bc8 {[%clk 0:00:48]} 37. Bg6 {[%clk 0:01:16]}  Bg4 {[%clk 0:00:39]} 38. Rh7 {[%clk 0:01:13]}  Rc8 {[%clk 0:00:34]} 39. Rb7 {[%clk 0:01:03]}  e4 {[%clk 0:00:31]} 40. Rb4+ {[%clk 0:01:03]}  Kc3 {[%clk 0:00:25]} 41. Rb3+ {[%clk 0:01:01]}  Kd2 {[%clk 0:00:25]} 42. h5 {[%clk 0:01:00]}  Rh8 {[%clk 0:00:15]} 43. c4 {[%clk 0:00:15]}  dxc4 {[%clk 0:00:16]} 44. Ra3 {[%clk 0:00:14]}  f5 {[%clk 0:00:07]} 45. Rxa6 {[%clk 0:00:03]}  e3+ {[%clk 0:00:07]} 46. Kg2 {[%clk 0:00:03]}  f4 {[%clk 0:00:04]} 47. Rd6+ {[%clk 0:00:04]}  Kc3 {[%clk 0:00:04]} 48. gxf4 {[%clk 0:00:04]}  Bxh5 {[%clk 0:00:04]} 49. Bf5 {[%clk 0:00:01]}  e2 {[%clk 0:00:03]} 50. Kf2 {[%clk 0:00:02]}  Re8 {[%clk 0:00:04]} 51. Re6 {[%clk 0:00:01]}  Rxe6 {[%clk 0:00:04]} 52. Bxe6 {[%clk 0:00:02]}  Kd2 {[%clk 0:00:05]} 0-1


[Site "https://www.chess.com"]